bitfinex/quotes_BTCUSD_20220304
["timestamp","ask_amount","ask_price","bid_price","bid_amount"]
[1646417507257,0.17300346,40872.0,40868.0,0.09704769]
[1646417507460,0.061222,40873.0,40868.0,0.09704769]
[1646417508493,0.01378922,40872.0,40868.0,0.09704769]
[1646417509092,0.01378922,40872.0,40869.0,0.66316253]
[1646417509290,0.01378922,40872.0,40871.0,0.367011]
[1646417510290,0.111209,40876.0,40871.0,0.467011]
[1646417510490,0.111209,40876.0,40873.0,0.367011]
[1646417510692,0.111209,40876.0,40872.0,0.1]
[1646417511191,0.111209,40876.0,40873.0,0.367011]
[1646417513052,0.11059499,40876.0,40873.0,0.367011]
[1646417513553,0.11059499,40876.0,40872.0,0.1]
[1646417513752,0.11059499,40876.0,40873.0,0.367011]
[1646417513952,0.11059499,40876.0,40869.0,0.367011]
[1646417514154,0.06121,40875.0,40869.0,0.367011]
[1646417514454,0.06121,40875.0,40871.0,0.367011]
[1646417514853,0.06121,40875.0,40873.0,0.367011]
[1646417515260,0.06121,40875.0,40874.0,0.367011]
[1646417515608,0.06121,40875.0,40871.0,0.367011]
[1646417515803,0.06121,40875.0,40872.0,0.1]
[1646417516003,0.06121,40875.0,40873.0,0.367011]
[1646417517309,0.06121,40875.0,40872.0,0.1]
[1646417517509,0.06121,40875.0,40868.0,0.09704769]
[1646417517710,0.061214,40873.0,40868.0,0.09704769]
[1646417518510,0.061214,40873.0,40869.0,0.367011]
[1646417518711,0.061214,40873.0,40868.0,0.09704769]
[1646417518712,0.183658,40873.0,40868.0,0.09704769]
[1646417519766,0.183658,40873.0,40869.0,0.367011]
[1646417520365,0.183658,40873.0,40870.0,0.367011]
[1646417520567,0.183658,40873.0,40869.0,0.367011]
[1646417520768,0.061214,40873.0,40869.0,0.517011]
[1646417521767,0.061214,40873.0,40871.0,0.367011]
[1646417521965,0.061214,40873.0,40869.0,0.15]
[1646417522165,0.111221,40874.0,40870.0,0.367011]
[1646417522366,0.111221,40874.0,40871.0,0.367011]
[1646417522566,0.061221,40874.0,40870.0,0.367011]
[1646417522867,0.05,40873.0,40870.0,0.367011]
[1646417523296,0.061221,40874.0,40870.0,0.367011]
[1646417523499,0.061221,40874.0,40872.0,0.367011]
[1646417523695,0.05,40876.0,40872.0,0.367011]
[1646417523894,0.05,40876.0,40871.0,0.367011]
[1646417524095,0.68527051,40877.0,40871.0,0.367011]
[1646417525603,0.68527051,40877.0,40872.0,0.1]
[1646417525802,0.5,40877.0,40873.0,0.56927813]
[1646417526002,0.5,40877.0,40873.0,0.61817813]
[1646417526203,0.5,40877.0,40875.0,0.367011]
[1646417526401,0.5,40877.0,40876.0,0.666977]
[1646417526601,0.4973926,40877.0,40876.0,0.666977]
[1646417526856,0.4973926,40877.0,40876.0,0.766977]
[1646417527057,0.5473926,40877.0,40876.0,0.766977]
[1646417527257,0.5473926,40877.0,40876.0,0.466977]
[1646417527859,0.5473926,40877.0,40876.0,0.766977]
[1646417528263,0.4973926,40877.0,40876.0,0.816977]
[1646417529059,0.49672977,40877.0,40876.0,0.816977]
[1646417530160,0.49672977,40877.0,40876.0,0.865877]
[1646417530803,0.49672977,40877.0,40876.0,0.890327]
[1646417531199,0.49672977,40877.0,40876.0,1.637527]
[1646417531399,0.49672977,40877.0,40876.0,0.865877]
[1646417532800,0.49672977,40877.0,40876.0,0.76802032]
[1646417534102,0.49672977,40877.0,40876.0,1.51522032]
[1646417534345,0.49672977,40877.0,40876.0,0.81802032]
[1646417536552,0.49672977,40877.0,40876.0,0.46912032]
[1646417537351,0.49672977,40877.0,40876.0,0.366977]
[1646417537550,0.54672977,40877.0,40876.0,0.366977]
[1646417538200,0.49672977,40877.0,40876.0,0.366977]
[1646417538604,0.49672977,40877.0,40869.0,0.2725]
[1646417538605,0.54672977,40877.0,40869.0,0.2725]
[1646417538802,0.061218,40875.0,40869.0,0.2725]
[1646417539402,0.44660193,40874.0,40870.0,0.366977]
[1646417539603,0.44660193,40874.0,40871.0,0.366977]
[1646417539804,0.49660193,40874.0,40870.0,0.366977]
[1646417540004,0.061214,40873.0,40870.0,0.366977]
[1646417540404,0.061214,40873.0,40869.0,0.15]
[1646417540609,0.061214,40873.0,40870.0,0.1]
[1646417540803,0.061214,40873.0,40869.0,0.15]
[1646417541209,0.05,40871.0,40869.0,0.15]
[1646417541607,0.111214,40873.0,40870.0,0.616977]
[1646417541848,0.061214,40873.0,40872.0,0.366977]
[1646417542554,0.061214,40873.0,40871.0,0.1]
[1646417542953,0.061214,40873.0,40870.0,0.35]
[1646417543156,0.061214,40873.0,40870.0,0.25]
[1646417544354,0.366977,40872.0,40870.0,0.25]
[1646417544653,0.05,40871.0,40870.0,0.25]
[1646417544855,0.05,40871.0,40870.0,0.152295]
[1646417545701,0.061214,40873.0,40870.0,0.152295]
[1646417547502,0.366977,40872.0,40870.0,0.152295]
[1646417547803,0.05,40871.0,40870.0,0.152295]
[1646417548003,0.416977,40871.0,40870.0,0.152295]
[1646417548209,0.12142017,40873.0,40870.0,0.152295]
[1646417548404,0.366977,40872.0,40870.0,0.152295]
[1646417549008,0.12142017,40873.0,40870.0,0.152295]
[1646417549204,0.366977,40871.0,40870.0,0.152295]
[1646417549443,0.366977,40872.0,40870.0,0.152295]
[1646417550444,0.12142017,40873.0,40870.0,0.152295]
[1646417550744,0.366977,40872.0,40870.0,0.152295]
[1646417551145,0.428201,40872.0,40870.0,0.152295]
[1646417551448,0.366977,40872.0,40870.0,0.152295]
[1646417553091,0.12142017,40873.0,40870.0,0.152295]
[1646417553292,0.366977,40872.0,40870.0,0.152295]
[1646417554493,0.366977,40871.0,40870.0,0.152295]
[1646417555494,0.366977,40872.0,40870.0,0.152295]
[1646417556849,0.12142017,40873.0,40870.0,0.152295]
[1646417557047,0.366977,40872.0,40870.0,0.152295]
[1646417558147,0.366977,40871.0,40870.0,0.152295]
[1646417559151,0.366977,40872.0,40870.0,0.152295]
[1646417559551,0.18264217,40873.0,40870.0,0.152295]
[1646417559552,0.366977,40871.0,40870.0,0.152295]
[1646417561695,0.666977,40871.0,40870.0,0.152295]
[1646417563295,0.666977,40871.0,40870.0,0.15221792]
[1646417563597,0.366977,40871.0,40870.0,0.15221792]
[1646417569601,0.50690024,40871.0,40870.0,0.15221792]
[1646417569901,1.839445,40870.0,40869.0,0.13673752]
[1646417570098,1.938345,40870.0,40869.0,0.13673752]
[1646417570298,2.06480662,40870.0,40869.0,0.13673752]
[1646417570498,0.01254801,40868.0,40866.0,0.00021199]
[1646417570698,0.416977,40867.0,40866.0,0.00021199]
[1646417570899,0.061244,40865.0,40858.0,0.1154]
[1646417571100,0.122487,40866.0,40858.0,0.1154]
[1646417571101,0.27173262,40859.0,40858.0,0.1154]
[1646417571298,0.27173262,40859.0,40855.0,0.26109073]
[1646417571498,0.27173262,40859.0,40854.0,0.1]
[1646417571699,0.061247,40858.0,40851.0,0.16]
[1646417572150,0.361247,40858.0,40851.0,0.01]
[1646417572351,0.061244,40856.0,40852.0,0.00021203]
[1646417573249,0.366977,40855.0,40852.0,0.00021203]
[1646417573447,0.3,40854.0,40851.0,0.01]
[1646417573648,0.366977,40853.0,40852.0,0.00021219]
[1646417574247,0.416977,40853.0,40852.0,0.00021219]
[1646417574752,0.366977,40852.0,40851.0,0.01]
[1646417575049,0.428231,40852.0,40851.0,0.01]
[1646417575697,0.728231,40852.0,40851.0,0.01]
[1646417578001,0.428231,40852.0,40851.0,0.01]
[1646417579001,0.05,40853.0,40851.0,0.01]
[1646417579204,0.111249,40854.0,40851.0,0.01]
[1646417580149,0.061249,40854.0,40851.0,0.01]
[1646417580350,0.061249,40854.0,40852.0,0.366977]
[1646417581150,0.061249,40854.0,40852.0,0.56481819]
[1646417581352,0.561231,40859.0,40853.0,0.74673973]
[1646417581553,0.5,40859.0,40854.0,0.415877]
[1646417581753,0.122453,40866.0,40854.0,0.415877]
[1646417581952,0.122453,40866.0,40854.0,0.41609506]
[1646417582153,0.122453,40866.0,40858.0,0.20411386]
[1646417582353,0.2713828,40860.0,40854.0,0.04911806]
[1646417582557,0.2713828,40860.0,40855.0,0.366977]
[1646417583194,0.2713828,40860.0,40855.0,0.36719506]
[1646417583596,0.3326188,40860.0,40855.0,0.36719506]
[1646417583796,0.3326188,40860.0,40855.0,0.36563721]
[1646417584196,0.3326188,40860.0,40855.0,0.36541915]
[1646417584398,0.3326188,40860.0,40855.0,0.61423987]
[1646417585202,0.3326188,40860.0,40855.0,0.36563721]
[1646417585400,0.3326188,40860.0,40855.0,0.36541915]
[1646417585600,0.3326188,40860.0,40855.0,0.36562995]
[1646417586201,0.3326188,40860.0,40856.0,0.25404598]
[1646417586501,0.3,40867.0,40856.0,0.25404598]
[1646417586502,0.061222,40864.0,40857.0,0.64669048]
[1646417586701,0.061222,40864.0,40857.0,1.44279048]
[1646417586943,0.061222,40864.0,40857.0,0.415877]
[1646417587149,0.061222,40864.0,40859.0,0.367047]
[1646417587345,0.31757622,40871.0,40860.0,0.0489]
[1646417587545,0.061216,40868.0,40861.0,0.367047]
[1646417587851,0.13595272,40872.0,40863.0,0.31315367]
[1646417588044,0.13595272,40872.0,40863.0,0.50327224]
[1646417588244,0.13595272,40872.0,40863.0,0.31336444]
[1646417588644,0.25597104,40870.0,40863.0,0.31336444]
[1646417589043,0.25597104,40870.0,40863.0,0.31315367]
[1646417589244,0.25597104,40870.0,40864.0,0.00021126]
[1646417590244,0.25597104,40870.0,40863.0,0.31315367]
[1646417590450,0.25597104,40870.0,40865.0,0.00021126]
[1646417590697,0.25597104,40870.0,40866.0,0.36701]
[1646417590901,0.25597104,40870.0,40865.0,0.00021126]
[1646417591299,0.25597104,40870.0,40861.0,0.0489]
[1646417591499,0.25597104,40870.0,40865.0,0.00021126]
[1646417591700,0.25597104,40870.0,40866.0,0.36701]
[1646417592600,0.06121,40871.0,40866.0,0.36701]
[1646417592803,0.06121,40871.0,40866.0,0.36722122]
[1646417593404,0.06121,40871.0,40869.0,0.2485736]
[1646417593602,0.06121,40871.0,40867.0,0.36701]
[1646417595155,0.06121,40871.0,40866.0,0.00021122]
[1646417595357,0.06121,40871.0,40867.0,0.36701]
[1646417596355,0.06121,40871.0,40866.0,0.00021122]
[1646417596758,0.07707318,40871.0,40866.0,0.00021122]
[1646417597357,0.07707318,40871.0,40866.0,0.36701]
[1646417597654,0.07707318,40871.0,40866.0,0.00021122]
[1646417597855,0.07707318,40871.0,40867.0,0.36701]
[1646417598495,0.07707318,40871.0,40865.0,0.2911715]
[1646417598698,0.07707318,40871.0,40866.0,0.36722122]
[1646417598896,0.07707318,40871.0,40867.0,0.36701]
[1646417599795,0.07707318,40871.0,40865.0,0.36701]
[1646417599996,0.07707318,40871.0,40866.0,0.00021122]
[1646417599997,0.16046244,40870.0,40866.0,0.00021122]
[1646417600196,0.07707318,40871.0,40866.0,0.00021122]
[1646417600602,0.13829618,40871.0,40866.0,0.00021122]
[1646417600997,0.13829618,40871.0,40864.0,0.005]
[1646417601297,0.18553441,40869.0,40866.0,0.00021122]
[1646417601699,0.13829618,40871.0,40866.0,0.00021122]
[1646417602148,0.13829618,40871.0,40860.0,0.1]
[1646417602149,0.13829618,40871.0,40861.0,0.36701]
[1646417602349,0.061227,40867.0,40866.0,0.00021122]
[1646417602550,0.18368,40868.0,40866.0,0.00021122]
[1646417602949,0.2188042,40867.0,40866.0,0.00021122]
[1646417603160,0.3300372,40867.0,40866.0,0.00021122]
[1646417603351,0.3300372,40867.0,40861.0,0.003]
[1646417603352,0.01099654,40866.0,40861.0,0.003]
[1646417603552,0.36701,40865.0,40864.0,0.00021123]
[1646417603751,0.41701,40865.0,40864.0,0.00021123]
[1646417603952,0.71701,40865.0,40864.0,0.00021123]
[1646417604652,0.23617232,40859.0,40855.0,0.1997]
[1646417604853,0.23617232,40859.0,40853.0,0.1209]
[1646417604854,0.29741032,40859.0,40853.0,0.1209]
[1646417605052,0.34741032,40859.0,40854.0,0.36701]
[1646417605252,0.34741032,40859.0,40853.0,0.1209]
[1646417605901,0.34741032,40859.0,40854.0,0.00021126]
[1646417606905,0.40865132,40859.0,40854.0,0.00021126]
[1646417607102,0.40865132,40859.0,40854.0,0.00021142]
[1646417607103,0.46989332,40859.0,40854.0,0.00021142]
[1646417607705,0.48238047,40859.0,40854.0,0.00021142]
[1646417608107,0.01079445,40858.0,40853.0,0.1209]
[1646417608311,0.06079445,40858.0,40854.0,0.00021142]
[1646417609111,0.06079445,40858.0,40854.0,0.15021142]
[1646417609346,0.06079445,40858.0,40854.0,0.15]
[1646417609548,0.06079445,40858.0,40854.0,0.15021142]
[1646417610345,0.05370772,40858.0,40854.0,0.15013013]
[1646417610547,0.00370772,40858.0,40854.0,0.14991871]
[1646417610849,0.05370772,40858.0,40854.0,0.15012996]
[1646417611748,0.05370772,40858.0,40854.0,0.14991871]
[1646417611946,0.05370772,40858.0,40854.0,0.15012996]
[1646417612146,0.00370772,40858.0,40854.0,0.15012996]
[1646417612349,0.05370772,40858.0,40854.0,0.15012996]
[1646417612746,0.00370772,40858.0,40854.0,0.15012996]
[1646417612950,0.36701,40857.0,40854.0,0.14991871]
[1646417613207,0.05370772,40858.0,40854.0,0.15012996]
[1646417613413,0.00370772,40858.0,40854.0,0.15012996]
[1646417613610,0.36701,40857.0,40854.0,0.15012996]
[1646417613808,0.36701,40856.0,40854.0,0.15012996]
[1646417614007,0.428257,40856.0,40854.0,0.15012996]
[1646417614207,0.478257,40856.0,40854.0,0.14991871]
[1646417614608,0.061247,40855.0,40854.0,0.14991871]
[1646417614808,0.428257,40855.0,40854.0,0.14991871]
[1646417615912,0.061247,40855.0,40854.0,0.14991871]
[1646417617649,0.05,40856.0,40854.0,0.14991871]
[1646417618248,0.00370772,40858.0,40854.0,0.14991871]
[1646417618748,0.05370772,40858.0,40854.0,0.14991871]
[1646417619150,0.00370772,40858.0,40854.0,0.15012997]
[1646417619349,0.05370772,40858.0,40854.0,0.15012997]
[1646417620150,0.05370772,40858.0,40854.0,0.14991871]
[1646417620352,0.00370772,40858.0,40854.0,0.15012997]
[1646417620609,0.05370772,40858.0,40854.0,0.15012997]
[1646417621410,0.05370772,40858.0,40854.0,0.14991871]
[1646417621607,0.05370772,40858.0,40854.0,0.15012997]
[1646417622008,0.36701,40857.0,40854.0,0.15012997]
[1646417622212,0.05370772,40858.0,40854.0,0.15012997]
[1646417622611,0.00370772,40858.0,40854.0,0.14991871]
[1646417622814,0.05370772,40858.0,40854.0,0.15012997]
[1646417623212,0.00370772,40858.0,40854.0,0.15012997]
[1646417623414,0.05370772,40858.0,40854.0,0.15012997]
[1646417623816,0.05370772,40858.0,40854.0,0.14991871]
[1646417624012,0.05370772,40858.0,40854.0,0.15012997]
[1646417624657,0.00370772,40858.0,40854.0,0.15012997]
[1646417624864,0.05370772,40858.0,40854.0,0.15012997]
[1646417625057,0.00370772,40858.0,40854.0,0.14991871]
[1646417625259,0.05,40858.0,40854.0,0.15012997]
[1646417626259,0.05,40858.0,40854.0,0.14991871]
[1646417626463,0.05,40858.0,40854.0,0.15012997]
[1646417628507,0.05,40858.0,40854.0,0.14991871]
[1646417628707,0.05,40858.0,40856.0,0.36701]
[1646417628909,0.061238,40859.0,40855.0,0.36701]
[1646417629309,0.061223,40863.0,40855.0,0.36701]
[1646417629707,0.061223,40863.0,40862.0,0.24911359]
[1646417629909,0.061223,40863.0,40862.0,0.61612359]
[1646417630210,0.05,40869.0,40862.0,0.61612359]
[1646417630211,0.061218,40867.0,40863.0,0.36701]
[1646417631209,0.061218,40867.0,40863.0,0.36713414]
[1646417631848,0.061218,40867.0,40863.0,0.00020334]
[1646417632149,0.061218,40867.0,40858.0,0.0509]
[1646417632350,0.061231,40866.0,40863.0,0.00020389]
[1646417632551,0.183693,40866.0,40863.0,0.00020389]
[1646417633148,0.05,40865.0,40863.0,0.00020389]
[1646417633350,0.29747992,40865.0,40858.0,0.004]
[1646417633549,0.061229,40864.0,40862.0,0.00021178]
[1646417634549,0.061229,40864.0,40858.0,0.004]
[1646417634848,0.061229,40864.0,40861.0,0.00021178]
[1646417635697,0.061229,40864.0,40857.0,0.004]
[1646417635896,0.1737552,40863.0,40860.0,0.0002112]
[1646417636098,0.05,40863.0,40860.0,0.0002112]
[1646417636300,0.061229,40864.0,40860.0,0.0002112]
[1646417637099,0.17755147,40858.0,40857.0,0.004]
[1646417637299,0.17755147,40858.0,40857.0,0.371019]
[1646417637499,0.17755147,40858.0,40857.0,0.004]
[1646417637500,0.52755147,40858.0,40857.0,0.004]
[1646417637700,0.59457047,40858.0,40857.0,0.004]
[1646417638598,0.06125,40857.0,40855.0,0.00021122]
[1646417638998,0.367019,40856.0,40855.0,0.00021122]
[1646417639448,0.06125,40857.0,40854.0,0.14991871]
[1646417639652,0.25690948,40855.0,40854.0,0.14991871]
[1646417642757,0.06190325,40858.0,40854.0,0.14991871]
[1646417642956,0.05,40858.0,40855.0,0.367019]
[1646417643199,0.111237,40859.0,40854.0,0.14991871]
[1646417644306,0.111237,40859.0,40855.0,0.367019]
[1646417644503,0.122464,40866.0,40855.0,0.367019]
[1646417644504,0.061231,40863.0,40855.0,0.367019]
[1646417644800,0.061231,40863.0,40854.0,0.20012996]
[1646417645000,0.061231,40863.0,40855.0,0.367019]
[1646417645500,0.061231,40863.0,40857.0,0.00021124]
[1646417645501,0.36688357,40863.0,40857.0,0.00021124]
[1646417646502,0.36688357,40863.0,40854.0,0.14991871]
[1646417646700,0.36688357,40863.0,40858.0,0.00021125]
[1646417647154,0.41688357,40863.0,40858.0,0.00021125]
[1646417647751,0.41688357,40863.0,40854.0,0.14991871]
[1646417647952,0.111231,40863.0,40858.0,0.00021125]
[1646417648351,0.061231,40863.0,40858.0,0.00021125]
[1646417648754,0.05,40865.0,40859.0,0.415919]
[1646417648953,0.05,40865.0,40860.0,0.29849729]
[1646417649153,0.55,40868.0,40861.0,0.60868172]
[1646417649352,0.05,40868.0,40861.0,0.415919]
[1646417649551,0.05,40868.0,40866.0,0.22713897]
[1646417649756,0.30033548,40869.0,40866.0,0.22713897]
[1646417650053,0.122448,40871.0,40866.0,0.22713897]
[1646417650254,0.061221,40870.0,40866.0,0.22713897]
[1646417650706,0.061221,40870.0,40866.0,0.367019]
[1646417650905,0.061221,40870.0,40865.0,0.04911122]
[1646417651105,0.32329878,40868.0,40866.0,0.367019]
[1646417651306,0.37329878,40868.0,40865.0,0.04911122]
[1646417651505,0.37329878,40868.0,40866.0,0.367019]
[1646417652506,0.37329878,40868.0,40865.0,0.04911123]
[1646417652705,0.37329878,40868.0,40866.0,0.367019]
[1646417653306,0.37329878,40868.0,40865.0,0.00021127]
[1646417653307,0.49575778,40868.0,40865.0,0.00021127]
[1646417654007,0.49575778,40868.0,40860.0,0.1723]
[1646417654008,0.061232,40866.0,40864.0,0.00021127]
[1646417654752,0.111232,40866.0,40864.0,0.00021127]
[1646417655155,0.172463,40866.0,40857.0,0.367019]
[1646417655353,0.21590682,40865.0,40863.0,0.00021128]
[1646417655555,0.172463,40866.0,40863.0,0.00021128]
[1646417656153,0.172463,40866.0,40863.0,0.00012356]
[1646417656353,0.061232,40864.0,40860.0,0.367019]
[1646417656553,0.061232,40864.0,40862.0,0.00021128]
[1646417657355,0.06115209,40864.0,40860.0,0.367019]
[1646417661202,0.06115209,40864.0,40860.0,0.36724635]
[1646417661856,0.06115209,40864.0,40863.0,0.367019]
[1646417663056,0.05,40867.0,40863.0,0.367019]
[1646417663358,0.062223,40870.0,40863.0,0.66604734]
[1646417663756,0.062223,40870.0,40863.0,0.66627468]
[1646417664155,0.062223,40870.0,40863.0,0.36724634]
[1646417664558,0.061223,40870.0,40863.0,0.36724634]
[1646417664758,0.31916555,40871.0,40863.0,0.367019]
[1646417665056,0.31916555,40871.0,40863.0,0.36724634]
[1646417665257,0.003,40872.0,40864.0,0.06152912]
[1646417665462,0.05,40871.0,40865.0,0.66628097]
[1646417665715,0.003,40872.0,40867.0,0.367019]
[1646417665912,0.003,40872.0,40869.0,0.367019]
[1646417666512,0.05,40876.0,40869.0,0.367019]
[1646417666711,0.49672977,40877.0,40869.0,0.367019]
[1646417666712,0.54672977,40877.0,40869.0,0.367019]
[1646417667812,0.061212,40876.0,40869.0,0.367019]
[1646417668612,0.061212,40876.0,40869.0,0.517019]
[1646417670556,0.54672977,40877.0,40869.0,0.517019]
[1646417671053,0.54672977,40877.0,40869.0,0.58503466]
[1646417671256,0.49672977,40877.0,40869.0,0.567019]
[1646417671459,0.49672977,40877.0,40873.0,1.30065361]
[1646417671658,0.49672977,40877.0,40876.0,0.367019]
[1646417671856,0.49672977,40877.0,40876.0,0.715919]
[1646417672058,0.49672977,40877.0,40876.0,0.815919]
[1646417672256,0.46082977,40877.0,40876.0,0.865919]
[1646417675004,0.46082977,40877.0,40876.0,1.08015165]
[1646417675205,0.46082977,40877.0,40876.0,0.865919]
[1646417676205,0.46082977,40877.0,40876.0,1.08400153]
[1646417678856,0.46082977,40877.0,40876.0,0.865919]
[1646417679858,0.46082977,40877.0,40876.0,0.415919]
[1646417680063,0.46082977,40877.0,40876.0,0.367019]
[1646417680718,0.26593706,40870.0,40869.0,0.15]
[1646417680918,0.26593706,40870.0,40869.0,0.517019]
[1646417681114,0.31593706,40870.0,40869.0,0.15]
[1646417681717,0.33191924,40870.0,40869.0,0.15]
[1646417682115,0.53993214,40870.0,40869.0,0.15]
[1646417682715,0.60115814,40870.0,40869.0,0.15]
[1646417683117,0.74108138,40870.0,40869.0,0.15]
[1646417683816,1.10810038,40870.0,40869.0,0.15]
[1646417684017,1.30700038,40870.0,40869.0,0.15]
[1646417684217,1.27486876,40870.0,40869.0,0.15]
[1646417687258,1.12486876,40870.0,40869.0,0.15]
[1646417687456,0.91685586,40870.0,40869.0,0.15]
[1646417687656,0.80906424,40870.0,40869.0,0.15]
[1646417688522,1.02365797,40870.0,40869.0,0.15]
[1646417692557,0.97475797,40870.0,40869.0,0.15]
[1646417695064,1.50067877,40870.0,40869.0,0.15]
[1646417695263,1.50067877,40870.0,40863.0,0.00021129]
[1646417695264,0.550762,40868.0,40863.0,0.00021129]
[1646417695463,0.211248,40866.0,40863.0,0.00021129]
[1646417695712,0.2911362,40864.0,40863.0,0.00021129]
[1646417695915,0.01258844,40863.0,40854.0,0.14991871]
[1646417696112,0.367019,40859.0,40854.0,0.14991871]
[1646417696315,0.0489,40858.0,40854.0,0.14991871]
[1646417696515,0.31130895,40856.0,40854.0,0.14991871]
[1646417696718,0.478274,40855.0,40854.0,0.14991871]
[1646417697212,0.6884983,40855.0,40854.0,0.14991871]
[1646417697812,0.478274,40855.0,40854.0,0.14991871]
[1646417698812,0.527174,40855.0,40854.0,0.14991871]
[1646417699866,0.627174,40855.0,40854.0,0.14991871]
[1646417706520,0.62656529,40855.0,40854.0,0.14991871]
[1646417706952,0.52386529,40855.0,40854.0,0.14991871]
[1646417707260,0.15684629,40855.0,40854.0,0.14991871]
[1646417707551,0.65684629,40855.0,40854.0,0.14991871]
[1646417708652,0.60794629,40855.0,40854.0,0.14991871]
[1646417708853,0.47496529,40855.0,40854.0,0.14991871]
[1646417709053,0.47496529,40855.0,40854.0,0.28945841]
[1646417709255,0.47496529,40855.0,40854.0,0.42899811]
[1646417710057,1.1,40854.0,40852.0,0.00021112]
[1646417710259,1.35,40852.0,40851.0,0.00277287]
[1646417710457,1.765919,40852.0,40851.0,0.002984]
[1646417710708,1.765919,40852.0,40845.0,0.00084463]
[1646417710709,0.367019,40849.0,40845.0,0.00084463]
[1646417710907,0.367019,40847.0,40845.0,0.00084463]
[1646417711109,0.85,40845.0,40836.0,0.1171]
[1646417711308,0.85,40845.0,40835.0,0.0011]
[1646417711309,0.715919,40844.0,40835.0,0.0011]
[1646417711708,0.765919,40844.0,40835.0,0.0011]
[1646417712110,0.367019,40842.0,40835.0,0.0011]
[1646417712307,0.43570977,40843.0,40835.0,0.0011]
[1646417712308,0.367019,40840.0,40835.0,0.0011]
[1646417712511,0.415919,40840.0,40835.0,0.0011]
[1646417713112,0.41559294,40840.0,40835.0,0.26817655]
[1646417713709,0.05,40841.0,40835.0,0.26817655]
[1646417714112,0.33570877,40843.0,40837.0,0.00122703]
[1646417714357,0.27442077,40843.0,40840.0,0.367117]
[1646417714556,0.27442077,40843.0,40837.0,0.00122703]
[1646417714757,0.27442077,40843.0,40840.0,0.367117]
[1646417714955,0.27442077,40843.0,40837.0,0.00122703]
[1646417715161,0.27442077,40843.0,40837.0,0.001]
[1646417715356,0.27442077,40843.0,40839.0,0.00122703]
[1646417716258,0.27442077,40843.0,40839.0,0.001]
[1646417716459,0.27442077,40843.0,40839.0,0.00122703]
[1646417717259,0.32442077,40843.0,40839.0,0.00122703]
[1646417717457,0.38568677,40843.0,40839.0,0.001]
[1646417717661,0.38568677,40843.0,40839.0,0.00122703]
[1646417717662,0.32442077,40843.0,40839.0,0.00122703]
[1646417718723,0.32442077,40843.0,40839.0,0.001]
[1646417718926,0.17442077,40843.0,40839.0,0.00121863]
[1646417719924,0.003,40849.0,40839.0,0.001]
[1646417720124,0.003,40849.0,40839.0,0.00121863]
[1646417720329,0.00321858,40849.0,40839.0,0.00121863]
[1646417720723,0.061258,40848.0,40839.0,0.00121863]
[1646417721125,0.25662398,40847.0,40839.0,0.001]
[1646417721326,0.30662398,40847.0,40841.0,0.00021863]
[1646417721726,0.061261,40846.0,40841.0,0.00021863]
[1646417722171,0.30662398,40847.0,40841.0,0.00021863]
[1646417722373,0.05,40847.0,40839.0,0.001]
[1646417722572,0.05,40847.0,40841.0,0.00021065]
[1646417722770,0.0002106,40849.0,40841.0,0.00021065]
[1646417723273,0.0002106,40849.0,40842.0,0.05]
[1646417723470,0.24170573,40856.0,40843.0,0.7232534]
[1646417723672,0.30295173,40856.0,40843.0,0.66534495]
[1646417723871,0.00021061,40849.0,40845.0,0.367117]
[1646417724273,0.00021061,40849.0,40847.0,0.367117]
[1646417724873,0.24170573,40856.0,40846.0,0.15]
[1646417725072,0.24170573,40856.0,40847.0,0.367117]
[1646417725073,0.00021098,40850.0,40847.0,0.367117]
[1646417725909,0.24170573,40856.0,40847.0,0.367117]
[1646417726105,0.111243,40858.0,40848.0,0.45664259]
[1646417726106,0.05,40858.0,40848.0,0.45664259]
[1646417726308,0.05,40858.0,40853.0,0.02445]
[1646417726506,0.001,40862.0,40857.0,0.02445]
[1646417726706,0.5,40867.0,40858.0,0.367117]
[1646417726905,0.00084355,40869.0,40858.0,0.367117]
[1646417727106,0.23853278,40864.0,40862.0,0.23808788]
[1646417727310,0.23853278,40864.0,40858.0,0.467117]
[1646417727607,0.23853278,40864.0,40858.0,0.1]
[1646417728406,0.23853278,40864.0,40857.0,0.05]
[1646417728407,0.36100478,40864.0,40857.0,0.05]
[1646417728607,0.27866434,40856.0,40854.0,0.3844]
[1646417728807,0.27866434,40856.0,40855.0,0.1]
[1646417729007,0.367117,40868.0,40855.0,0.1]
[1646417729209,0.367117,40868.0,40856.0,0.35]
[1646417729458,0.367117,40868.0,40854.0,0.05]
[1646417729459,0.001,40861.0,40854.0,0.05]
[1646417729661,0.001,40861.0,40852.0,0.004]
[1646417729662,0.061243,40859.0,40852.0,0.004]
[1646417729856,0.061246,40858.0,40852.0,0.004]
[1646417730057,0.32378047,40858.0,40854.0,0.23653133]
[1646417730257,0.37378047,40858.0,40852.0,0.004]
[1646417730662,0.37378047,40858.0,40851.0,0.3]
[1646417730860,0.061245,40857.0,40851.0,0.3]
[1646417731058,0.061245,40857.0,40848.0,0.24302267]
[1646417731261,0.061247,40856.0,40853.0,0.27174157]
[1646417731659,0.111245,40857.0,40854.0,0.18499427]
[1646417731860,0.05,40857.0,40853.0,0.27174157]
[1646417732061,0.5,40868.0,40854.0,0.3]
[1646417732261,0.07581492,40867.0,40854.0,0.3]
[1646417732661,0.32535782,40867.0,40857.0,0.24134631]
[1646417732862,0.32535782,40867.0,40858.0,0.49363035]
[1646417733102,0.32535782,40867.0,40858.0,0.3]
[1646417733307,0.37535782,40867.0,40858.0,0.3]
[1646417733509,0.43658682,40867.0,40860.0,0.00022691]
[1646417734504,0.43658682,40867.0,40858.0,0.3]
[1646417734704,0.43658682,40867.0,40860.0,0.00022691]
[1646417735106,0.172463,40867.0,40860.0,0.00022691]
[1646417735709,0.172463,40867.0,40859.0,0.003]
[1646417736012,0.172463,40867.0,40860.0,0.00022691]
[1646417736708,0.172463,40867.0,40858.0,0.3]
[1646417736962,0.172463,40867.0,40860.0,0.00020983]
[1646417737362,0.061228,40866.0,40860.0,0.00020983]
[1646417737562,0.111228,40866.0,40860.0,0.00020983]